{"text_format":"1","workbook":"xlsx","n_sheets":2,"sheets":["Sheet1","Sheet3"],"not_rendered":{"charts":0,"images":0,"macros":1,"external_links":0,"defined_names":2,"comments":0,"pivot_tables":0},"unopened":[],"bounds":{"document_bytes":16777216,"sheet_cells":100000,"rows_first":2000,"rows_last":500,"rows_between":2000,"halvings":0,"cell_chars":16384,"cell_head_chars":4096},"cells_cut":0,"cells_raw":0,"read":"whole","date_system":"1900"}

{"sheet":"Sheet1","index":0,"n_rows":124,"n_cols":52,"rows_kept":124,"cut":false,"hidden":false,"merged":[[116,43,117,44],[116,45,117,46],[114,7,114,11],[98,7,98,11],[86,7,86,11],[110,36,110,37],[116,29,116,30],[72,7,72,11],[85,41,85,42],[103,32,103,33],[105,32,105,33],[97,24,97,25],[86,12,86,15],[72,24,72,25],[72,37,72,38],[79,32,79,33],[78,32,78,33],[81,31,81,32],[85,21,85,22],[39,32,39,33],[12,32,12,33],[9,36,9,37],[17,4,17,7],[17,8,17,9],[17,19,17,22],[17,23,17,24],[17,32,17,35],[17,36,17,37],[9,11,9,12],[12,5,12,7],[12,20,12,21],[35,12,35,16],[24,12,24,16],[15,3,15,9],[15,18,15,24],[24,18,24,21],[35,18,35,21],[1,1,4,47],[24,38,24,39],[28,33,28,34],[35,38,35,39],[15,31,15,37],[41,61,41,63],[46,8,46,9],[49,12,49,15],[47,38,47,39],[66,32,66,33],[46,12,46,15],[57,38,57,39],[58,7,58,11],[44,11,44,16],[60,27,60,28],[63,32,63,33],[53,32,53,33],[123,36,123,37],[114,12,114,15],[72,12,72,15],[58,12,58,15],[89,29,89,30],[98,12,98,15]]}
[]
[null,"Level 3/4 Maths - Area                                                                                                                                                                   Created by Mr.Lafferty@mathsrevision.com   "]
[]
[]
[]
[]
[null,{"$f":"\"Q1.  Calculate the area of the basic shapes below.\"","v":"Q1.  Calculate the area of the basic shapes below."}]
[]
[]
[null,null,null,null,null,null,null,null,null,null,null,{"$f":"ROUND(RAND()*(9-4)+4,0)","v":5},null,"cm",null,null,null,null,null,null,null,null,null,null,null,null,null,null,null,null,null,null,null,null,null,null,{"$f":"ROUND(RAND()*(15-6)+6,0)","v":8},null,"cm"]
[null,null,null,null,null,null,null,null,null,null,null,null,null,null,null,null,null,null,null,null,null,null,null,null,null,null,null,null,null,null,null,null,null,null,null,null,null,null,null,null,null,null,null,null,null,null,null,null,null,null,null,{"$f":"ROUND(F13*L10,1)","v":139.5}]
[]
[null,null,null,null,null,{"$f":"ROUND(RAND()*(30-18)+18,1)","v":27.9},null,null,"cm",null,null,null,null,null,null,null,null,null,null,null,{"$f":"ROUND(RAND()*(15-6)+6,0)","v":11},null,"cm",null,null,null,null,null,null,null,null,null,{"$f":"ROUND(RAND()*(15-6)+6,1)","v":11.6},null,"cm",null,null,null,null,null,null,null,null,null,null,null,null,null,null,null,null,{"$f":"ROUND(U13*U13,1)","v":121}]
[]
[null,null,null,null,null,null,null,null,null,null,null,null,null,null,null,null,null,null,null,null,null,null,null,null,null,null,null,null,null,null,null,null,null,null,null,null,null,null,null,null,null,null,null,null,null,null,null,null,null,null,null,{"$f":"ROUND(AG13*AK10*0.5,1)","v":46.4}]
[null,null,null,"(1 decimal place)",null,null,null,null,null,null,null,null,null,null,null,null,null,null,"(1 decimal place)",null,null,null,null,null,null,null,null,null,null,null,null,"(1 decimal place)"]
[]
[null,null,null,null,null,null,null,null,"cm2",null,null,null,null,null,null,null,null,null,null,null,null,null,null,"cm2",null,null,null,null,null,null,null,null,null,null,null,null,"cm2"]
[]
[]
[null,{"$f":"\"Q2.  Calculate the are of the rhombus.\"","v":"Q2.  Calculate the are of the rhombus."}]
[]
[]
[]
[null,null,null,null,null,null,null,null,null,null,null,null,"Answer = ",null,null,null,null,null,null,null,null,null,"m2",null,null,null,null,null,null,null,null,null,null,null,null,null,null,null,{"$f":"ROUND(RAND()*(15-6)+6,1)","v":7.2},null,"m",null,null,null,null,null,null,null,null,null,null,{"$f":"ROUND(0.5*AM25*AH29,1)","v":18}]
[]
[null,null,null,null,null,null,null,null,null,null,null,null,null,null,null,null,null,"(1 decimal place)"]
[]
[null,null,null,null,null,null,null,null,null,null,null,null,null,null,null,null,null,null,null,null,null,null,null,null,null,null,null,null,null,null,null,null,null,{"$f":"ROUND(RAND()*(9-4)+4,0)","v":5},null,"m"]
[]
[]
[null,{"$f":"\"Q3.  Calculate the area of the parallelogram.\"","v":"Q3.  Calculate the area of the parallelogram."}]
[]
[]
[]
[null,null,null,null,null,null,null,null,null,null,null,null,"Answer = ",null,null,null,null,null,null,null,null,null,"m2",null,null,null,null,null,null,null,null,null,null,null,null,null,null,null,{"$f":"ROUND(RAND()*(15-6)+6,1)","v":14.3},null,"m",null,null,null,null,null,null,null,null,null,null,{"$f":"ROUND(AG40*AM36,1)","v":85.8}]
[]
[null,null,null,null,null,null,null,null,null,null,null,null,null,null,null,null,null,"(1 decimal place)"]
[]
[null,null,null,null,null,null,null,null,null,null,null,null,null,null,null,null,null,null,null,null,null,null,null,null,null,null,null,null,null,null,null,null,{"$f":"ROUND(RAND()*(9-4)+4,0)","v":6},null,"m"]
[]
[]
[null,"Q4. Calculate the area and perimeter of the circle. "]
[]
[null,null,null,null,null,null,null,null,null,null,null,"Take π = 3.14"]
[]
[null,null,null,null,null,null,null,null,"Area",null,null,null,null,null,null,null,"cm2",null,null,"(to 1 decimal places)",null,null,null,null,null,null,null,null,null,null,null,null,null,null,null,null,null,null,null,null,null,null,null,null,null,null,null,null,null,null,null,{"$f":"ROUND(3.14*(AM48/2)*(AM48/2),1)","v":95}]
[null,null,null,null,null,null,null,null,null,null,null,null,null,null,null,null,null,null,null,null,null,null,null,null,null,null,null,null,null,null,null,null,null,null,null,null,null,null,{"$f":"ROUND(RAND()*(12-(9))+(9),0)","v":11},null,"cm"]
[]
[null,null,null,null,null,null,null,null,"Perimeter",null,null,null,null,null,null,null,"cm",null,null,"(to 1 decimal places)",null,null,null,null,null,null,null,null,null,null,null,null,null,null,null,null,null,null,null,null,null,null,null,null,null,null,null,null,null,null,null,{"$f":"ROUND(3.14*AM48,1)","v":34.5}]
[]
[]
[]
[null,null,null,null,null,null,null,null,null,null,null,null,null,null,null,null,null,null,null,null,null,null,null,null,null,null,null,null,null,null,null,null,{"$f":"ROUND(0.58*AG64,1)","v":5.8},null,"m"]
[null,{"$f":"\"Q5.  Calculate the area of the arrow.\"","v":"Q5.  Calculate the area of the arrow."}]
[]
[]
[null,null,null,null,null,null,null,null,null,null,null,null,null,null,null,null,null,null,null,null,null,null,null,null,null,null,null,null,null,null,null,null,null,null,null,null,null,null,{"$f":"ROUND(RAND()*(30-(20))+(20),0)","v":26},null,"m"]
[null,null,null,null,null,null,null,"Answer = ",null,null,null,null,null,null,null,null,"m2",null,null,null,null,null,null,null,null,null,null,null,null,null,null,null,null,null,null,null,null,null,null,null,null,null,null,null,null,null,null,null,null,null,null,{"$f":"ROUND(AG54*(AM58-AB61)+(0.5*AG64*AB61),1)","v":143.80000000000001}]
[]
[null,null,null,null,null,null,null,null,null,null,null,"(1 decimal place)",null,null,null,null,null,null,null,null,null,null,null,null,null,null,null,{"$f":"ROUND(0.34*AM58,1)","v":8.8000000000000007},null,"m"]
[]
[]
[null,null,null,null,null,null,null,null,null,null,null,null,null,null,null,null,null,null,null,null,null,null,null,null,null,null,null,null,null,null,null,null,{"$f":"ROUND(RAND()*(12-(8))+(8),0)","v":10},null,"m"]
[]
[]
[null,null,null,null,null,null,null,null,null,null,null,null,null,null,null,null,null,null,null,null,null,null,null,null,null,null,null,null,null,null,null,null,{"$f":"ROUND(RAND()*(12-(8))+(8),0)","v":11},null,"m"]
[]
[null,{"$f":"\"Q6.  Calculate the area of the composite shape.\"","v":"Q6.  Calculate the area of the composite shape."}]
[]
[]
[]
[null,null,null,null,null,null,null,"Answer = ",null,null,null,null,null,null,null,null,"m2",null,null,null,null,null,null,null,{"$f":"ROUND(RAND()*(30-(20))+(20),0)","v":21},null,"m",null,null,null,null,null,null,null,null,null,null,{"$f":"ROUND(Y73*0.85,1)","v":17.899999999999999},null,"m",null,null,null,null,null,null,null,null,null,null,null,{"$f":"ROUND((AG79*AL73)+(AG67*(Y73-AL73)),1)","v":89.6}]
[]
[null,null,null,null,null,null,null,null,null,null,null,"(1 decimal place)"]
[]
[]
[]
[null,null,null,null,null,null,null,null,null,null,null,null,null,null,null,null,null,null,null,null,null,null,null,null,null,null,null,null,null,null,null,null,{"$f":"ROUND(RAND()*(5-(2))+(2),1)","v":3.1},null,"m"]
[]
[]
[null,null,null,null,null,null,null,null,null,null,null,null,null,null,null,null,null,null,null,null,null,null,null,null,null,null,null,null,null,null,null,{"$f":"ROUND(RAND()*(30-(20))+(20),0)","v":28},null,"m"]
[null,{"$f":"\"Q7.  Calculate the area of the blue shaded part.\"","v":"Q7.  Calculate the area of the blue shaded part."}]
[]
[]
[null,null,null,null,null,null,null,null,null,null,null,null,null,null,null,null,null,null,null,null,null,{"$f":"ROUND(AF82*0.46,1)","v":12.9},null,"m",null,null,null,null,null,null,null,null,null,null,null,null,null,null,null,null,null,{"$f":"ROUND(V86*0.73,1)","v":9.4},null,"m"]
[null,null,null,null,null,null,null,"Answer = ",null,null,null,null,null,null,null,null,"m2",null,null,null,null,null,null,null,null,null,null,null,null,null,null,null,null,null,null,null,null,null,null,null,null,null,null,null,null,null,null,null,null,null,null,{"$f":"ROUND((AF82*V86)-(AD90*AP86),1)","v":255.9}]
[]
[null,null,null,null,null,null,null,null,null,null,null,"(1 decimal place)"]
[null,null,null,null,null,null,null,null,null,null,null,null,null,null,null,null,null,null,null,null,null,null,null,null,null,null,null,null,null,{"$f":"ROUND(AF82*0.4,1)","v":11.2},null,"m"]
[]
[]
[null,{"$f":"\"Q8.  Calculate the area of the blue shaded part.\"","v":"Q8.  Calculate the area of the blue shaded part."}]
[]
[]
[]
[]
[null,null,null,null,null,null,null,null,null,null,null,null,null,null,null,null,null,null,null,null,null,null,null,null,{"$f":"AG106-ROUND(RAND()*(10-3)+3,0)","v":95},null,"cm"]
[null,null,null,null,null,null,null,"Answer = ",null,null,null,null,null,null,null,null,"cm2",null,null,null,null,null,null,null,null,null,null,null,null,null,null,null,null,null,null,null,null,null,null,null,null,null,null,null,null,null,null,null,null,null,null,{"$f":"ROUND(((Y98*AG106)-0.5*AG104*Y98),0)","v":8313}]
[]
[null,null,null,null,null,null,null,null,null,null,null,"(nearest whole number)"]
[]
[]
[null,null,null,null,null,null,null,null,null,null,null,null,null,null,null,null,null,null,null,null,null,null,null,null,null,null,null,null,null,null,null,null,{"$f":"ROUND(AG106/4,0)","v":25},null,"cm"]
[]
[null,null,null,null,null,null,null,null,null,null,null,null,null,null,null,null,null,null,null,null,null,null,null,null,null,null,null,null,null,null,null,null,{"$f":"ROUND(RAND()*(10-1)+1,0)*10","v":100},null,"cm"]
[]
[]
[null,{"$f":"\"Q9.  Calculate the area of the shaded part of the logo.\"","v":"Q9.  Calculate the area of the shaded part of the logo."}]
[]
[null,null,null,null,null,null,null,null,null,null,null,null,null,null,null,null,null,null,null,null,null,null,null,null,null,null,null,null,null,null,null,null,null,null,null,null,{"$f":"ROUND(RAND()*(20-(13))+(13),0)","v":19},null,"cm"]
[]
[]
[]
[null,null,null,null,null,null,null,"Answer = ",null,null,null,null,null,null,null,null,"cm2",null,"(nearest whole number)",null,null,null,null,null,null,null,null,null,null,null,null,null,null,null,null,null,null,null,null,null,null,null,null,null,null,null,null,null,null,null,null,{"$f":"ROUND(0.5*AD117*AK111-(0.5*AK124*AR117),0)","v":192}]
[]
[null,null,null,null,null,null,null,null,null,null,null,null,null,null,null,null,null,null,null,null,null,null,null,null,null,null,null,null,null,{"$f":"ROUND(RAND()*(30-(20))+(20),0)","v":24},null,"cm",null,null,null,null,null,null,null,null,null,null,null,{"$f":"ROUND(AD117/4,0)","v":6},null,"cm"]
[]
[]
[]
[]
[]
[]
[null,null,null,null,null,null,null,null,null,null,null,null,null,null,null,null,null,null,null,null,null,null,null,null,null,null,null,null,null,null,null,null,null,null,null,null,{"$f":"ROUND(AK111*0.65,0)","v":12},null,"cm"]

{"sheet":"Sheet3","index":1,"n_rows":0,"n_cols":0,"rows_kept":0,"cut":false,"hidden":false,"merged":[]}